bitfinex/quotes_BTCUSD_20250508
["timestamp","ask_amount","ask_price","bid_price","bid_amount"]
[1746745759464,0.2078635,103010.0,103000.0,0.06100573]
[1746745760672,0.2078635,103010.0,103000.0,0.04510573]
[1746745762570,0.2078635,103010.0,103000.0,0.06100573]
[1746745763300,0.2078635,103010.0,103000.0,0.04510573]
[1746745764895,0.2078635,103010.0,103000.0,0.06030573]
[1746745765098,0.2078635,103010.0,103000.0,0.088256]
[1746745765507,0.2078635,103010.0,103000.0,0.08631446]
[1746745765710,0.2078635,103010.0,103000.0,0.07660573]
[1746745765901,0.2078635,103010.0,103000.0,0.04510573]
[1746745766099,0.2234635,103010.0,103000.0,0.04510573]
[1746745766523,0.2394635,103010.0,103000.0,0.04510573]
[1746745771357,0.2078635,103010.0,103000.0,0.04510573]
[1746745772140,0.2395635,103010.0,103000.0,0.04510573]
[1746745775890,0.56433773,103010.0,103000.0,0.04510573]
[1746745776954,0.34023042,103010.0,103000.0,0.04510573]
[1746745777251,0.56433773,103010.0,103000.0,0.04510573]
[1746745777590,0.56433773,103010.0,103000.0,0.0390343]
[1746745778132,0.34023042,103010.0,103000.0,0.0390343]
[1746745778334,0.56433773,103010.0,103000.0,0.04510577]
[1746745778875,0.61420379,103010.0,103000.0,0.04510577]
[1746745779559,0.61420379,103010.0,103000.0,0.0390343]
[1746745780764,0.34023042,103010.0,103000.0,0.0390343]
[1746745781370,0.34023042,103010.0,103000.0,0.03]
[1746745782794,0.34023042,103010.0,103000.0,0.04515153]
[1746745786376,0.21359174,103000.0,102990.0,0.33303643]
[1746745786578,0.01370704,103010.0,103000.0,0.62024921]
[1746745786822,0.03312187,103010.0,103000.0,0.84435652]
[1746745787155,0.22727833,103010.0,103000.0,0.82494009]
[1746745787336,0.2058635,103010.0,103000.0,0.38724085]
[1746745787853,0.2058635,103010.0,103000.0,0.35454085]
[1746745788054,0.2058635,103010.0,103000.0,0.37044085]
[1746745788276,0.2068635,103010.0,103000.0,0.39514958]
[1746745788475,0.2068635,103010.0,103000.0,0.59903297]
[1746745788886,0.2382635,103010.0,103000.0,0.34]
[1746745789295,0.2068635,103010.0,103000.0,0.34]
[1746745789699,0.2078635,103010.0,103000.0,0.34]
[1746745790130,0.2078635,103010.0,103000.0,0.3557]
[1746745791057,0.2078635,103010.0,103000.0,0.3723]
[1746745792951,0.2078635,103010.0,103000.0,0.82454018]
[1746745793149,0.21757082,103010.0,103000.0,0.83424854]
[1746745793355,0.21757082,103010.0,103000.0,0.85366487]
[1746745793537,0.22727861,103010.0,103000.0,0.8439568]
[1746745793735,0.21757082,103010.0,103000.0,0.85366497]
[1746745793953,0.004,103010.0,103000.0,0.95433123]
[1746745794283,0.03312205,103010.0,103000.0,0.95433123]
[1746745794411,0.03312205,103010.0,103000.0,0.94462316]
[1746745794816,0.22727795,103010.0,103000.0,0.94462316]
[1746745795976,0.23698574,103010.0,103000.0,0.91549837]
[1746745796333,0.23698574,103010.0,103000.0,0.92520673]
[1746745796553,0.22727861,103010.0,103000.0,0.92520682]
[1746745797306,0.22727861,103010.0,103000.0,0.93491518]
[1746745798158,0.22727861,103010.0,103000.0,0.94462344]
[1746745798377,0.22727861,103010.0,103000.0,0.93491518]
[1746745798576,0.22727861,103010.0,103000.0,0.94462344]
[1746745798823,0.22727861,103010.0,103000.0,0.94098488]
[1746745799860,0.23090216,103010.0,103000.0,0.94098488]
[1746745800270,0.23090216,103010.0,103000.0,0.70716921]
[1746745800465,0.23090216,103010.0,103000.0,0.92156807]
[1746745800667,0.23090216,103010.0,103000.0,0.93127643]
[1746745800875,0.23090216,103010.0,103000.0,0.93062487]
[1746745801072,0.23090216,103010.0,103000.0,0.93062497]
[1746745801277,0.23090216,103010.0,103000.0,0.92091633]
[1746745801437,0.22119484,103010.0,103000.0,0.94033262]
[1746745802063,0.21757129,103010.0,103000.0,0.72674069]
[1746745802238,0.21757129,103010.0,103000.0,0.73644933]
[1746745802578,0.21757129,103010.0,103000.0,0.94033262]
[1746745803056,0.21757129,103010.0,103000.0,0.95004098]
[1746745803276,0.21757129,103010.0,103000.0,0.94033262]
[1746745803479,0.21757129,103010.0,103000.0,0.9840267]
[1746745804110,0.002,103050.0,103020.0,0.07282085]
[1746745804291,0.02910774,103060.0,103050.0,0.35454085]
[1746745804645,0.23287253,103060.0,103050.0,0.60061786]
[1746745804849,0.23287253,103060.0,103050.0,0.58471786]
[1746745805054,0.2231702,103060.0,103050.0,0.58471786]
[1746745805273,0.01940541,103060.0,103050.0,0.79820578]
[1746745805451,0.0388593,103060.0,103050.0,0.79820578]
[1746745805701,0.23292101,103060.0,103050.0,0.80790924]
[1746745805908,0.02915622,103060.0,103050.0,0.8176126]
[1746745806127,0.02915622,103060.0,103050.0,0.82502658]
[1746745806341,0.02915622,103060.0,103050.0,0.85017379]
[1746745806730,0.01945333,103060.0,103050.0,0.85017379]
[1746745807019,4.792e-05,103060.0,103050.0,0.99370894]
[1746745807238,4.792e-05,103060.0,103050.0,1.20624802]
[1746745807451,4.792e-05,103060.0,103050.0,1.23401625]
[1746745807684,4.792e-05,103060.0,103050.0,1.26906115]
[1746745807900,0.00304792,103060.0,103050.0,1.26906115]
[1746745808317,0.00304792,103060.0,103050.0,1.66906115]
[1746745808532,4.792e-05,103060.0,103050.0,1.66906115]
[1746745808750,0.21351513,103060.0,103050.0,1.2160591]
[1746745808967,0.21351513,103060.0,103050.0,0.81754366]
[1746745809143,0.21351513,103060.0,103050.0,0.81112968]
[1746745809357,0.20381252,103060.0,103050.0,0.49425267]
[1746745809564,0.20381252,103060.0,103050.0,0.3790449]
[1746745809991,0.20381252,103060.0,103050.0,0.3820449]
[1746745810620,0.20381252,103060.0,103050.0,0.3780449]
[1746745810850,0.20381252,103060.0,103050.0,0.3750449]
[1746745811061,0.23551252,103060.0,103050.0,0.3750449]
[1746745811264,0.23551252,103060.0,103050.0,0.34]
[1746745811462,0.20378437,103050.0,103040.0,0.22410731]
[1746745811702,0.20378437,103050.0,103040.0,0.56410731]
[1746745811907,0.21968437,103050.0,103040.0,0.5989392]
[1746745812676,0.21968437,103050.0,103040.0,0.6029392]
[1746745812870,0.21968437,103050.0,103040.0,0.6059392]
[1746745813073,0.23578437,103050.0,103040.0,0.38183189]
[1746745814698,0.21348811,103050.0,103040.0,0.8242842]
[1746745814864,0.01940757,103050.0,103040.0,0.83958429]
[1746745815063,0.01940653,103050.0,103040.0,0.98476441]
[1746745815352,0.19410963,103060.0,103050.0,0.57773213]
[1746745815353,0.01945305,103060.0,103050.0,0.57773213]
[1746745815557,0.02915575,103060.0,103050.0,1.15811367]
[1746745815774,0.03885827,103060.0,103050.0,1.15811367]
[1746745815946,0.02915557,103060.0,103050.0,1.15811367]
[1746745816186,4.792e-05,103060.0,103050.0,1.22867367]
[1746745817008,4.792e-05,103060.0,103050.0,1.22967367]
[1746745817191,4.792e-05,103060.0,103050.0,0.78145905]
[1746745817363,4.792e-05,103060.0,103050.0,1.23167367]
[1746745817577,0.00975015,103060.0,103050.0,1.28608209]
[1746745818049,4.792e-05,103060.0,103050.0,1.68608209]
[1746745818211,4.792e-05,103060.0,103050.0,1.65850171]
[1746745818783,0.23292026,103060.0,103050.0,1.37694239]
[1746745818996,0.23292026,103060.0,103050.0,1.366323]
[1746745819192,0.22321718,103060.0,103050.0,1.37602646]
[1746745819391,0.22321718,103060.0,103050.0,1.60983713]
[1746745819615,0.00975015,103060.0,103050.0,1.64263713]
[1746745819828,4.792e-05,103060.0,103050.0,1.64263713]
[1746745820895,4.792e-05,103060.0,103050.0,1.92641913]
[1746745821063,4.792e-05,103060.0,103050.0,1.91598613]
[1746745821270,4.792e-05,103060.0,103050.0,1.85005613]
[1746745821669,4.792e-05,103060.0,103050.0,1.87688417]
[1746745822434,4.792e-05,103060.0,103050.0,1.66946517]
[1746745822636,0.00975025,103060.0,103050.0,1.66946517]
[1746745822858,0.01945277,103060.0,103050.0,1.66946517]
[1746745822995,0.00975015,103060.0,103050.0,2.08576517]
[1746745823198,4.792e-05,103060.0,103050.0,2.08576517]
[1746745824241,4.792e-05,103060.0,103050.0,1.68576517]
[1746745824533,0.03885789,103060.0,103050.0,1.68576517]
[1746745824702,0.02915509,103060.0,103050.0,1.68576517]
[1746745825045,0.029155,103060.0,103050.0,1.65893713]
[1746745825344,0.00975015,103060.0,103050.0,1.65893713]
[1746745825759,4.792e-05,103060.0,103050.0,1.65893713]
[1746745826398,0.00975025,103060.0,103050.0,1.65893713]
[1746745826797,4.792e-05,103060.0,103050.0,1.65893713]
[1746745827457,0.01945267,103060.0,103050.0,1.65893713]
[1746745827669,0.01945257,103060.0,103050.0,1.65893713]
[1746745827991,0.00975015,103060.0,103050.0,1.65893713]
[1746745828576,0.00975015,103060.0,103050.0,2.05893713]
[1746745829233,0.01945248,103060.0,103050.0,1.65893713]
[1746745829351,0.03885798,103060.0,103050.0,1.61639377]
[1746745829570,4.792e-05,103060.0,103050.0,1.64909377]
[1746745829829,0.19486211,103070.0,103060.0,0.22800825]
[1746745829997,0.19486211,103070.0,103060.0,0.45211556]
[1746745830195,0.19486211,103070.0,103060.0,0.45211575]
[1746745830467,0.19486211,103070.0,103060.0,0.47152125]
[1746745830820,0.19486211,103070.0,103060.0,0.46181855]
[1746745831021,0.19586211,103070.0,103060.0,0.46181855]
[1746745831420,0.01799196,103070.0,103060.0,0.5818905]
[1746745831665,0.01799186,103070.0,103060.0,0.64386292]
[1746745832032,0.00829057,103070.0,103060.0,1.01409064]
[1746745832448,0.00929057,103070.0,103060.0,1.01409064]
[1746745832902,0.00929057,103070.0,103060.0,0.82002893]
[1746745833203,0.00829057,103070.0,103060.0,1.41409064]
[1746745833707,0.00829057,103070.0,103060.0,1.41809064]
[1746745834053,0.00829057,103070.0,103060.0,1.83439064]
[1746745834284,0.00729057,103070.0,103060.0,1.83439064]
[1746745835504,0.00729057,103070.0,103060.0,1.83639064]
[1746745835702,0.00729057,103070.0,103060.0,2.06049795]
[1746745835927,0.00653743,103070.0,103060.0,3.77677395]
[1746745836131,0.00107058,103070.0,103060.0,3.78677395]
[1746745836327,0.002,103090.0,103080.0,0.61066736]
[1746745836502,0.002,103090.0,103080.0,2.58322104]
[1746745836722,0.00273436,103090.0,103080.0,2.39005304]
[1746745836943,0.00570686,103090.0,103080.0,2.35247304]
[1746745837156,0.002,103090.0,103080.0,2.39541704]
[1746745837356,0.00644378,103090.0,103080.0,2.33464704]
[1746745837574,0.00644378,103090.0,103080.0,2.24606604]
[1746745837769,0.02584307,103090.0,103080.0,2.10628904]
[1746745837945,0.01614328,103090.0,103080.0,2.10628904]
[1746745838148,0.01614319,103090.0,103080.0,2.10628904]
[1746745838357,0.01662222,103090.0,103080.0,2.10628904]
[1746745839166,0.02632182,103090.0,103080.0,2.10628904]
[1746745839356,0.00683431,103090.0,103080.0,2.10628904]
[1746745839556,0.00683431,103090.0,103080.0,2.28384304]
[1746745839791,0.00239053,103090.0,103080.0,2.25361532]
[1746745840166,0.00239053,103090.0,103080.0,2.18224232]
[1746745840367,0.00684837,103090.0,103080.0,2.18224232]
[1746745841184,0.00239053,103090.0,103080.0,2.18947308]
[1746745841386,0.01209003,103090.0,103080.0,2.08329208]
[1746745841593,0.00684454,103090.0,103080.0,2.08329208]
[1746745841765,0.01209003,103090.0,103080.0,2.08329208]
[1746745842017,0.00239053,103090.0,103080.0,2.08329208]
[1746745842170,0.00692905,103090.0,103080.0,2.08329208]
[1746745842614,0.00692905,103090.0,103080.0,2.14157208]
[1746745842792,0.00692905,103090.0,103080.0,2.08329208]
[1746745844184,0.00692905,103090.0,103080.0,2.72375608]
[1746745844619,0.00239053,103090.0,103080.0,2.72375608]
[1746745844827,0.00693003,103090.0,103080.0,2.72375608]
[1746745845244,0.00693003,103090.0,103080.0,2.73375608]
[1746745845443,0.00239053,103090.0,103080.0,2.76344545]
[1746745846507,0.00239053,103090.0,103080.0,2.69658645]
[1746745847296,0.00239053,103090.0,103080.0,2.36791008]
[1746745848077,0.00239053,103090.0,103080.0,2.21594566]
[1746745848271,0.00239053,103090.0,103080.0,2.05351966]
[1746745848501,0.01677543,103090.0,103080.0,2.03711966]
[1746745848785,0.00707602,103090.0,103080.0,2.03711966]
[1746745849740,0.00707602,103090.0,103080.0,2.17812266]
[1746745850137,0.00707602,103090.0,103080.0,2.02039966]
[1746745850362,0.00707602,103090.0,103080.0,2.06375296]
[1746745850975,0.00410631,103090.0,103080.0,2.06375296]
[1746745851205,0.19852144,103090.0,103080.0,1.9740316]
[1746745851354,0.01421571,103090.0,103080.0,2.00313388]
[1746745851553,0.01421571,103090.0,103080.0,2.07345388]
[1746745851872,0.00451621,103090.0,103080.0,2.07345388]
[1746745852132,0.01421571,103090.0,103080.0,2.07345388]
[1746745852313,0.01939929,103090.0,103080.0,2.07345388]
[1746745852515,0.01939929,103090.0,103080.0,1.83964603]
[1746745852516,0.26410428,103090.0,103080.0,1.83964603]
[1746745852713,0.25897547,103090.0,103080.0,1.84934657]
[1746745853093,0.06497024,103090.0,103080.0,1.84934657]
[1746745853290,0.06497024,103090.0,103080.0,1.8874563]
[1746745853933,0.02494438,103090.0,103080.0,1.8874563]
[1746745854334,0.02494438,103090.0,103080.0,0.96020156]
[1746745854335,0.22864958,103090.0,103080.0,0.96020156]
[1746745854495,0.23834965,103090.0,103080.0,0.50499379]
[1746745854698,0.23834965,103090.0,103080.0,0.08869379]
[1746745855081,0.23834965,103090.0,103080.0,0.10323464]
[1746745855284,0.23834965,103090.0,103080.0,0.08869379]
[1746745855616,0.23834965,103090.0,103080.0,0.44323464]
[1746745856220,0.23834965,103090.0,103080.0,0.35454085]
[1746745856436,0.23834965,103090.0,103080.0,0.34]
[1746745858837,0.23834965,103090.0,103080.0,0.34606543]
[1746745861350,0.23834965,103090.0,103080.0,0.57017274]
[1746745861553,0.03927092,103090.0,103080.0,0.8078401]
[1746745861761,0.24297631,103090.0,103080.0,0.89880648]
[1746745861980,0.24297631,103090.0,103080.0,0.90850711]
[1746745862213,0.24297631,103090.0,103080.0,0.90850721]
[1746745862833,0.03927092,103090.0,103080.0,0.91820784]
[1746745863040,0.04897099,103090.0,103080.0,0.92790838]
[1746745863214,0.03367099,103090.0,103080.0,0.92790838]
[1746745863596,0.04337115,103090.0,103080.0,0.92790838]
[1746745863808,0.23737638,103090.0,103080.0,0.91820784]
[1746745863982,0.24927672,103090.0,103080.0,0.68538051]
[1746745864390,0.24927672,103090.0,103080.0,0.89880648]
[1746745864955,0.24927672,103090.0,103080.0,0.88910566]
[1746745865162,0.24927672,103090.0,103080.0,0.89880658]
[1746745865379,0.002,103110.0,103090.0,0.04614085]
[1746745865587,0.03118651,103110.0,103100.0,1.1284449]
[1746745865793,0.03118652,103110.0,103100.0,0.93263277]
[1746745866001,0.02148842,103110.0,103100.0,0.9386982]
[1746745866212,0.01179052,103110.0,103100.0,1.3386982]
[1746745866421,0.00209299,103110.0,103100.0,1.3386982]
[1746745866628,0.00209299,103110.0,103100.0,1.56280551]
[1746745866833,0.00209299,103110.0,103100.0,2.32757388]
[1746745868032,0.00209299,103110.0,103100.0,2.29788451]
[1746745868467,0.00209299,103110.0,103100.0,2.24480151]
[1746745868675,0.00209299,103110.0,103100.0,2.27449088]
[1746745868876,0.00209299,103110.0,103100.0,2.27649088]
[1746745869105,0.00209299,103110.0,103100.0,2.23797488]
[1746745869424,0.00209299,103110.0,103100.0,2.07626751]
[1746745869641,0.00209299,103110.0,103100.0,2.07826751]
[1746745870783,0.02148833,103110.0,103100.0,1.31246375]
[1746745870994,0.02148833,103110.0,103100.0,1.79896375]
[1746745870995,0.03118624,103110.0,103100.0,1.79896375]
[1746745871198,0.01557166,103110.0,103100.0,1.79896375]
[1746745871407,0.00587413,103110.0,103100.0,1.72876375]
[1746745871670,0.00587413,103110.0,103100.0,1.91900475]
[1746745871840,0.00587413,103110.0,103100.0,2.00770785]
[1746745872061,0.00587413,103110.0,103100.0,1.88766685]
[1746745874104,0.02526947,103110.0,103100.0,1.802926]
[1746745874317,0.00587413,103110.0,103100.0,2.180709]
[1746745874524,0.00587413,103110.0,103100.0,1.87269985]
[1746745874778,0.02541894,103110.0,103100.0,1.48766685]
[1746745874982,0.00602379,103110.0,103100.0,1.48766685]
[1746745875200,0.00602379,103110.0,103100.0,1.54754675]
[1746745875392,0.00209299,103110.0,103100.0,1.54754675]
[1746745875769,0.03878795,103120.0,103110.0,0.5630616]
[1746745875971,0.0290907,103120.0,103110.0,0.88783583]
[1746745876171,0.01361982,103120.0,103110.0,0.89390126]
[1746745876377,0.02331669,103120.0,103110.0,0.89390126]
[1746745877675,0.00392314,103120.0,103110.0,1.13254942]
[1746745877898,0.00392314,103120.0,103110.0,1.16514942]
[1746745878105,0.00392314,103120.0,103110.0,1.58144942]
[1746745878309,0.00392314,103120.0,103110.0,1.98144942]
[1746745879175,0.00392314,103120.0,103110.0,1.96484942]
[1746745880120,0.21726557,103120.0,103110.0,1.2775732]
[1746745880323,0.24286329,103120.0,103110.0,1.78520477]
[1746745880525,0.24286329,103120.0,103110.0,1.79490277]
[1746745880965,0.24286329,103120.0,103110.0,1.80460068]
[1746745881393,0.24286329,103120.0,103110.0,1.79490277]
[1746745882074,0.25796329,103120.0,103110.0,1.4715408]
[1746745882329,0.25796329,103120.0,103110.0,1.64976169]
[1746745882563,0.24826633,103120.0,103110.0,0.52561089]
[1746745882812,0.24826633,103120.0,103110.0,0.93573089]
[1746745883037,0.24826633,103120.0,103110.0,0.44324546]
[1746745883933,0.24826633,103120.0,103110.0,0.08870461]
[1746745885347,0.20366579,103110.0,103100.0,0.35454085]
[1746745885544,0.23496579,103110.0,103100.0,0.35454085]
[1746745885783,0.23496579,103110.0,103100.0,0.01454085]
[1746745886212,0.23496579,103110.0,103100.0,0.35454085]
[1746745886428,0.23496579,103110.0,103100.0,0.35654085]
[1746745886632,0.23496579,103110.0,103100.0,0.35854085]
[1746745887022,0.23880137,103110.0,103100.0,0.35854085]
[1746745888709,0.24624534,103110.0,103100.0,0.35854085]
[1746745889322,0.25594343,103110.0,103100.0,0.55252727]
[1746745889531,0.25594343,103110.0,103100.0,0.7863339]
[1746745889802,0.25594343,103110.0,103100.0,0.8020966]
[1746745890005,0.23654715,103110.0,103100.0,0.36460452]
[1746745890451,0.23654715,103110.0,103100.0,0.56829016]
[1746745890670,0.23654715,103110.0,103100.0,0.37430384]
[1746745890886,0.23654715,103110.0,103100.0,0.57798939]
[1746745891113,0.23654715,103110.0,103100.0,0.56829026]
[1746745891355,0.23654715,103110.0,103100.0,0.36460452]
[1746745891826,0.23654715,103110.0,103100.0,0.37430384]
[1746745892073,0.22910318,103110.0,103100.0,0.36460452]
[1746745892319,0.22910318,103110.0,103100.0,0.01006367]
[1746745893256,0.22910318,103110.0,103100.0,0.004]
[1746745893467,0.23653096,103110.0,103100.0,0.004]
[1746745897003,0.23653096,103110.0,103100.0,0.20768555]
[1746745897410,0.23653096,103110.0,103100.0,0.20768574]
[1746745897654,0.23653096,103110.0,103100.0,0.004]
[1746745898185,0.23880156,103110.0,103100.0,0.21252727]
[1746745898391,0.24849965,103110.0,103100.0,0.55669966]
[1746745898591,0.24849965,103110.0,103100.0,0.56276333]
[1746745899360,0.24849965,103110.0,103100.0,0.33865602]
[1746745900131,0.23289965,103110.0,103100.0,0.33865602]
[1746745901379,0.24889965,103110.0,103100.0,0.02460452]
[1746745901822,0.24889965,103110.0,103100.0,0.01006367]
[1746745903163,0.25612365,103110.0,103100.0,0.01006367]
[1746745904183,0.25612365,103110.0,103100.0,0.004]
[1746745905043,0.25612365,103110.0,103100.0,0.01006367]
[1746745905485,0.24889965,103110.0,103100.0,0.01006367]
[1746745905686,0.23289965,103110.0,103100.0,0.01006367]
[1746745905890,0.23289965,103110.0,103100.0,0.21374931]
[1746745906233,0.23289965,103110.0,103100.0,0.22344844]
[1746745906437,0.23289965,103110.0,103100.0,0.21859094]
[1746745906827,0.23289965,103110.0,103100.0,0.23798929]
[1746745906828,0.21719965,103110.0,103100.0,0.23798929]
[1746745907380,0.21719965,103110.0,103100.0,0.24768814]
[1746745907606,0.21719965,103110.0,103100.0,0.23798929]
[1746745907785,0.21719965,103110.0,103100.0,0.47179554]
[1746745908568,0.21719965,103110.0,103100.0,0.4620966]
[1746745908802,0.21719965,103110.0,103100.0,0.45239757]
[1746745908995,0.20750156,103110.0,103100.0,0.45239757]
[1746745909156,0.22390156,103110.0,103100.0,0.25841115]
[1746745909380,0.22390156,103110.0,103100.0,0.04400306]
[1746745909586,0.0135332,103110.0,103100.0,1.02676093]
[1746745909837,0.03292901,103110.0,103100.0,1.02482131]
[1746745909981,0.00383558,103110.0,103100.0,1.95207131]
[1746745910340,0.00383558,103110.0,103100.0,1.98230805]
[1746745912406,0.0135332,103110.0,103100.0,1.98230805]
[1746745912615,0.0135332,103110.0,103100.0,1.87135805]
[1746745913102,0.0135332,103110.0,103100.0,1.87135747]
[1746745913513,0.22304061,103120.0,103110.0,0.43747119]
[1746745913717,0.22304061,103120.0,103110.0,0.53813811]
[1746745913978,0.22304061,103120.0,103110.0,0.5442012]
[1746745914767,0.04848501,103120.0,103110.0,0.55389892]
[1746745914973,0.04848501,103120.0,103110.0,0.56999892]
[1746745915176,0.02909042,103120.0,103110.0,0.56999892]
[1746745915383,0.01939346,103120.0,103110.0,0.56999892]
[1746745915588,0.01939346,103120.0,103110.0,0.58609892]
[1746745916006,0.01939346,103120.0,103110.0,1.00239892]
[1746745916436,0.01939346,103120.0,103110.0,1.03263566]
[1746745916647,0.03878786,103120.0,103110.0,1.03263566]
[1746745916854,0.03878786,103120.0,103110.0,1.01653585]
[1746745916855,0.24243408,103120.0,103110.0,1.01653585]
[1746745917069,0.24243408,103120.0,103110.0,1.09615366]
[1746745917487,0.23273749,103120.0,103110.0,1.09615366]
[1746745917714,0.02909127,103120.0,103110.0,1.10585138]
[1746745918974,0.02139233,103130.0,103120.0,0.56303997]
[1746745919188,0.03108797,103130.0,103120.0,0.8878142]
[1746745919402,0.01169574,103130.0,103120.0,0.89387729]
[1746745919687,0.02139176,103130.0,103120.0,0.89387729]
[1746745919903,0.01169565,103130.0,103120.0,0.89387729]
[1746745920146,0.02139158,103130.0,103120.0,0.89387729]
[1746745920319,0.0330877,103130.0,103120.0,0.89387729]
[1746745920753,0.01369565,103130.0,103120.0,0.89387729]
[1746745921212,0.004,103130.0,103120.0,0.95531403]
[1746745921358,0.004,103130.0,103120.0,1.34455828]
[1746745921359,0.0350877,103130.0,103120.0,1.34455828]
[1746745921565,0.0350877,103130.0,103120.0,1.35425457]
[1746745921769,0.01569574,103130.0,103120.0,1.4141261]
[1746745921980,0.01569574,103130.0,103120.0,1.8304261]
[1746745922800,0.006,103130.0,103120.0,1.8304261]
[1746745923017,0.006,103130.0,103120.0,1.86011547]
[1746745923703,0.006,103130.0,103120.0,1.8304261]
[1746745924359,0.006,103130.0,103120.0,2.28154247]
[1746745924593,0.006,103130.0,103120.0,1.8304261]
[1746745924967,0.006,103130.0,103120.0,3.1722141]
[1746745925186,0.002,103130.0,103120.0,3.0941631]
[1746745925422,0.002,103130.0,103120.0,2.9091551]
[1746745925591,0.002,103130.0,103120.0,2.87891836]
[1746745925795,0.002,103130.0,103120.0,1.80418936]
[1746745926039,0.02139176,103130.0,103120.0,1.20928205]
[1746745926245,0.24802232,103130.0,103120.0,0.04503707]
[1746745926774,0.47212963,103130.0,103120.0,0.004]
[1746745926981,0.57279655,103130.0,103120.0,0.004]
[1746745927388,0.34868924,103130.0,103120.0,0.004]
[1746745927855,0.34868924,103130.0,103120.0,0.002]
[1746745928020,0.25002232,103130.0,103120.0,0.002]
[1746745928679,0.22844272,103120.0,103110.0,0.28900468]
[1746745929264,0.22844272,103120.0,103110.0,0.24366419]
[1746745929577,0.24374272,103120.0,103110.0,0.24366419]
[1746745929773,0.25343959,103120.0,103110.0,0.24366419]
[1746745930421,0.01939346,103120.0,103110.0,0.81746922]
[1746745930756,0.02909043,103120.0,103110.0,0.81746922]
[1746745930975,0.04658807,103130.0,103120.0,0.23758082]
[1746745931183,0.25571806,103130.0,103120.0,0.32855096]
[1746745931393,0.25571806,103130.0,103120.0,0.3249165]
[1746745931633,0.22662999,103130.0,103120.0,0.02060345]
[1746745931838,0.22662999,103130.0,103120.0,0.05636749]
[1746745932011,0.22662999,103130.0,103120.0,0.02060345]
[1746745932230,0.22862999,103130.0,103120.0,0.02060345]
[1746745932425,0.23062999,103130.0,103120.0,0.22424967]
[1746745933193,0.23062999,103130.0,103120.0,0.23394692]
[1746745934418,0.23062999,103130.0,103120.0,0.0060626]
[1746745935137,0.23062999,103130.0,103120.0,0.04071076]
[1746745935447,0.23062999,103130.0,103120.0,0.03464816]
[1746745935668,0.23544604,103120.0,103110.0,0.3460626]
[1746745937827,0.23544604,103120.0,103110.0,0.35576098]
[1746745938060,0.23544604,103120.0,103110.0,0.3460626]
[1746745938694,0.23544604,103120.0,103110.0,0.0060626]
[1746745939412,0.23544604,103120.0,103110.0,0.04036852]
[1746745941383,0.23544604,103120.0,103110.0,0.0060626]
[1746745944830,0.23544604,103120.0,103110.0,0.03628127]
[1746745945424,0.23544604,103120.0,103110.0,0.0060626]
[1746745945989,0.45955335,103120.0,103110.0,0.0060626]
[1746745946214,0.23544604,103120.0,103110.0,0.0060626]
[1746745946803,0.56022027,103120.0,103110.0,0.0060626]
[1746745947214,0.2447844,103100.0,103090.0,0.05140309]
[1746745947423,0.2447844,103100.0,103090.0,0.05149608]
[1746745947811,0.46889171,103100.0,103090.0,0.05149608]
[1746745948213,0.56955863,103100.0,103090.0,0.05149608]
[1746745948593,0.56955863,103100.0,103090.0,0.01015559]
[1746745948977,0.56955863,103100.0,103090.0,0.00615559]
[1746745949201,0.56955863,103100.0,103090.0,0.00915559]
[1746745950001,0.02910529,103070.0,103060.0,0.81274774]
[1746745950228,0.02910529,103070.0,103060.0,0.94387869]
[1746745951259,0.02910529,103070.0,103060.0,0.94987869]
[1746745951620,0.02910529,103070.0,103060.0,0.95487869]
[1746745951844,0.22314817,103070.0,103060.0,0.94517627]
[1746745952052,0.02910529,103070.0,103060.0,0.95487869]
[1746745952301,0.02910529,103070.0,103060.0,0.87737058]
[1746745952505,0.02910529,103070.0,103060.0,0.81784394]
[1746745953687,0.02910529,103070.0,103060.0,0.80814152]
[1746745953688,0.22314817,103070.0,103060.0,0.80814152]
[1746745954019,0.22314817,103070.0,103060.0,0.81784404]
[1746745954676,0.22314817,103070.0,103060.0,0.56996997]
[1746745954878,0.22314817,103070.0,103060.0,0.59907846]
[1746745955085,0.22314817,103070.0,103060.0,0.60878088]
[1746745955086,0.02910519,103070.0,103060.0,0.60878088]
[1746745955293,0.02910519,103070.0,103060.0,0.58937603]
[1746745955493,0.23285021,103070.0,103060.0,0.57967333]
[1746745955698,0.23285021,103070.0,103060.0,0.58937613]
[1746745955899,0.23285021,103070.0,103060.0,0.57967333]
[1746745956556,0.23285021,103070.0,103060.0,0.59421418]
[1746745956911,0.22314873,103070.0,103060.0,0.37010687]
[1746745957288,0.22314873,103070.0,103060.0,0.59421418]
[1746745957706,0.22314873,103070.0,103060.0,0.60391698]
[1746745958121,0.22314873,103070.0,103060.0,0.58451129]
[1746745958321,0.22314873,103070.0,103060.0,0.99421418]
[1746745958530,0.22314873,103070.0,103060.0,1.00391698]
[1746745958974,0.22314873,103070.0,103060.0,1.01361968]
[1746745959173,0.21344612,103070.0,103060.0,1.01361968]
[1746745959373,0.00970035,103080.0,103070.0,0.22314817]
[1746745959544,0.01940089,103080.0,103070.0,0.57366001]
[1746745959874,0.02910162,103080.0,103070.0,0.59306325]
[1746745960079,0.01940089,103080.0,103070.0,0.59306325]
[1746745960459,0.00970035,103080.0,103070.0,0.59306325]
[1746745960661,0.00970035,103080.0,103070.0,0.60006325]
[1746745961063,0.01940098,103080.0,103070.0,1.01636325]
[1746745961313,0.0291019,103080.0,103070.0,1.01636325]
[1746745961519,0.01940098,103080.0,103070.0,1.01636325]
[1746745962267,0.01940098,103080.0,103070.0,1.02242861]
[1746745962557,0.01940089,103080.0,103070.0,1.02242861]
[1746745963976,0.02910162,103080.0,103070.0,1.02242861]
[1746745965098,0.02910162,103080.0,103070.0,1.42242861]
[1746745965526,0.21342579,103080.0,103070.0,0.61417313]
[1746745965704,0.21342579,103080.0,103070.0,0.78808463]
[1746745965916,0.21342579,103080.0,103070.0,0.76868044]
[1746745966253,0.21342579,103080.0,103070.0,0.97242537]
[1746745966452,0.21342579,103080.0,103070.0,0.9918289]
[1746745966655,0.21342579,103080.0,103070.0,1.01123195]
[1746745966865,0.23282725,103080.0,103070.0,1.03253047]
[1746745967064,0.23282725,103080.0,103070.0,0.61623047]
[1746745967313,0.23282716,103080.0,103070.0,0.62593195]
[1746745967522,0.23282716,103080.0,103070.0,0.61623047]
[1746745967523,0.24252836,103080.0,103070.0,0.61623047]
[1746745967824,0.23282791,103080.0,103070.0,0.60652899]
[1746745968056,0.23282791,103080.0,103070.0,0.61623066]
[1746745968467,0.01169988,103090.0,103080.0,0.21342569]
[1746745968642,0.002,103090.0,103080.0,0.59504159]
[1746745968876,0.002,103090.0,103080.0,1.91062026]
[1746745969047,0.0116996,103090.0,103080.0,1.61136767]
[1746745969250,0.0116996,103090.0,103080.0,1.88143867]
[1746745969484,0.002,103090.0,103080.0,1.85158526]
[1746745969652,0.02139901,103090.0,103080.0,1.85358526]
[1746745970082,0.02139901,103090.0,103080.0,1.85458526]
[1746745970419,0.01169941,103090.0,103080.0,1.85458526]
[1746745971196,0.002,103090.0,103080.0,1.85458526]
[1746745971602,0.002,103090.0,103080.0,1.72992526]
[1746745971953,0.002,103090.0,103080.0,1.58451426]